[Event "GCT Superbet Rapid Poland 2025"]
[Site "Warsaw"]
[Date "2025.04.27"]
[Round "4.5"]
[White "Fedoseev, Vladimir"]
[Black "Vachier-Lagrave, Maxime"]
[Result "1/2-1/2"]
[ECO "D85"]
[WhiteElo "2739"]
[BlackElo "2722"]
[Annotator "TA"]
[PlyCount "102"]
[EventDate "2025.??.??"]
[EventType "rapid"]
[TimeControl "1500+10"]

{[%evp 16,102,11,0,0,0,0,0,0,0,0,10,9,0,12,20,23,0,29,13,4,9,7,-29,-19,-21,-17,-25,-25,-27,0,-1,15,0,0,-9,22,5,37,25,69,0,18,9,15,23,22,31,41,0,0,0,8,8,8,8,8,8,8,8,8,8,8,8,8,8,8,8,8,8,12,0,0,0,0,0,0,0,0,0,0,0,0,0,0,0,0,0,0]} 1. d4 {[%emt 0:00:04]} Nf6 {[%emt 0:00:01]} 2. c4 {[%emt 0:00:04]} g6 {[%emt 0:00:02]} 3. Nc3 {[%emt 0:00:19]} d5 {[%emt 0:00:02]} 4. cxd5 {[%emt 0:00:03]} Nxd5 {[%emt 0:00:02]} 5. e4 {[%emt 0:00:03]} Nxc3 {[%emt 0:00:01]} 6. bxc3 {[%emt 0:00:03]} Bg7 {[%emt 0:00:02]} 7. Nf3 {[%emt 0:00:03]} c5 {[%emt 0:00:02]} 8. h3 {[%emt 0:00:03]} O-O {[%emt 0:00:18]} 9. Be2 {[%emt 0:00:03]} cxd4 {[%emt 0:00:14] D85: Exchange Grünfeld: Unusual White 7th moves and lines with 7 Nf3.} 10. cxd4 {[%emt 0:00:03]} Nc6 {[%emt 0:00:01][%cal Rc6d4]} 11. Be3 {[%emt 0:00:03]} Qa5+ {[%emt 0:00:05]} 12. Bd2 {[%emt 0:00:03]} Qa3 {[%emt 0:00:02]} 13. d5 {[%emt 0:00:03]} Ne5 {[%emt 0:00:06]} ({Much worse is} 13... Bxa1 14. Qxa1 Nb4 15. O-O $16) 14. O-O {[%emt 0:00:12]} Bd7 {[%emt 0:00:25] is the new trend.} 15. Rb1 {[%emt 0:00:08]} Ba4 {[%emt 0:00:08]} 16. Qe1 {[%emt 0:00:20]} Nd3 {[%emt 0:00:04]} 17. Bb4 $146 {[%emt 0:05:26]} (17. Bxd3 Qxd3 18. Bg5 Rfe8 19. Qa5 b5 20. Rbc1 h6 21. Rfe1 Rac8 22. Rxc8 Rxc8 23. Bxe7 {½-½ Giri,A (2752)-Vachier Lagrave,M (2734) Saint Louis Rapid 2023 (1)}) ({RR} 17. Bxd3 Qxd3 18. Bg5 Rfe8 19. Qa5 b5 20. Rbc1 h6 21. Rfe1 Rac8 22. Rxc8 Rxc8 23. Bxe7 Bd1 24. Qd2 Qxd2 25. Nxd2 Ba4 26. e5 Rc2 27. Bb4 a5 28. Bxa5 Rxa2 29. e6 fxe6 30. dxe6 Ra1 31. Rxa1 Bxa1 {Giri,A (2752)-Vachier Lagrave,M (2734) Saint Louis USA 2023 ½-½ (59)}) ({RR} 17. Bxd3 Qxd3 18. Bg5 Rfe8 19. Qb4 b5 20. Bxe7 a5 21. Qc5 Qxe4 22. d6 b4 23. Rfe1 Qb7 24. Ne5 Bd7 25. Nxf7 Qb5 26. Qxb5 Bxb5 27. Ne5 Bxe5 28. Rxe5 Bd7 29. g4 Kf7 30. Rb3 Ra7 31. Kh2 Ba4 {Amburgy,R (2266)-Johnson,D (2362) Charlotte USA 2025 1-0 (47)}) ({RR} 17. Bxd3 Qxd3 18. Bg5 Rfe8 19. Rxb7 Bb5 20. Bxe7 Qxf1+ 21. Qxf1 Bxf1 22. Kxf1 Rab8 23. Rxa7 Bf8 24. Bxf8 Kxf8 25. Ng5 h6 26. Nxf7 Rxe4 27. g3 Re7 28. Rxe7 Kxe7 29. Nxh6 Rd8 30. Ng4 Rxd5 31. Kg2 Ra5 {Sevian,S (2684)-Vachier Lagrave,M (2757) Chess.com INT 2022 ½-½ (47)}) ({RR} 17. Bxd3 Qxd3 18. Bg5 Rfe8 19. Qa5 b5 20. Rbc1 h6 21. Rfe1 Rac8 22. Rxc8 Rxc8 23. Bxe7 Bd1 24. Qd2 Qxd2 25. Nxd2 Ba4 26. e5 Rc2 27. Bb4 a5 28. Bxa5 Rxa2 29. e6 fxe6 30. dxe6 Ra1 31. Rxa1 Bxa1 {Giri,A (2752)-Vachier Lagrave,M (2734) Saint Louis USA 2023 ½-½ (59)}) 17... Nxb4 {[%emt 0:00:19]} (17... Qxa2 $2 18. Bxd3 Rfe8 19. Bc3 $18) 18. Qxb4 {[%emt 0:00:02]} Qxa2 {[%emt 0:00:02] Hoping for ...a5.} (18... Qxb4 19. Rxb4 Bc2 20. e5 Rfc8) 19. Bc4 {[%emt 0:00:28] [#]} a5 $1 {[%emt 0:00:02]} 20. Bxa2 {[%emt 0:03:43]} axb4 {[%emt 0:00:01]} 21. Rxb4 {[%emt 0:00:02]} b5 {[%emt 0:01:58]} 22. e5 {[%emt 0:01:46]} Rfd8 {[%emt 0:04:14]} 23. Re1 {[%emt 0:00:59]} Bh6 {[%emt 0:02:22]} 24. g4 {[%emt 0:01:05]} Bc2 {[%emt 0:04:15]} 25. Rb2 {[%emt 0:00:15]} Ra3 {[%emt 0:00:01]} 26. Nd4 {[%emt 0:03:24]} Bd3 {[%emt 0:00:56]} 27. Nc6 {[%emt 0:00:14]} (27. Nxb5 Bxb5 28. d6 Bd7 (28... exd6 $2 29. Bxf7+ Kxf7 30. Rxb5 $19) 29. dxe7 Re8 $19) 27... Rda8 {[%emt 0:02:48]} 28. Bb1 {[%emt 0:01:40]} (28. Nxe7+ $2 {too greedy.} Kf8 29. Bb1 Kxe7 $17) (28. d6 $1 $14 Bg5 (28... Rxa2 $2 29. Rxa2 Rxa2 30. dxe7 $18) 29. f4 (29. Nxe7+ Kf8 $16) 29... Bxf4 30. d7 (30. Nxe7+ Kf8 $11)) 28... Bc4 {[%emt 0:02:07]} 29. Nxe7+ {[%emt 0:00:12]} Kf8 {[%emt 0:00:02]} 30. d6 {[%emt 0:00:11]} Rxh3 {[%emt 0:01:28]} 31. Be4 {[%emt 0:01:13]} Ra4 {[%emt 0:00:40]} 32. Kg2 {[%emt 0:00:38]} Rc3 {[%emt 0:01:56] The position is equal.} 33. f3 {[%emt 0:01:58]} Bg5 {[%emt 0:01:23]} 34. Nd5 {[%emt 0:00:46]} Bxd5 {[%emt 0:00:02]} 35. Bxd5 {[%emt 0:00:01]} Rd4 $1 $132 {[%emt 0:00:01][%mdl 2048] [#] Black puts up resistance} 36. Bxf7 {[%emt 0:01:56]} Kxf7 {[%emt 0:00:09]} (36... Rc1 37. Ree2) 37. e6+ {[%emt 0:00:01]} Ke8 {[%emt 0:00:02]} 38. Rxb5 {[%emt 0:00:23]} Rd2+ {[%emt 0:03:09]} (38... Rxd6 {simplifies} 39. Rxg5 Rd2+ 40. Kg3 Rdd3) 39. Kg3 {[%emt 0:00:04] Rb8+ would kill now. Chess con chili.} Rxd6 $1 {[%emt 0:00:01]} 40. Rxg5 $11 {[%emt 0:00:03][%mdl 4096] Endgame next Rb5 is good for White. KRR-KRR. White is a pawn up.} Rdd3 {[%emt 0:00:02]} 41. Rf1 {[%emt 0:01:06]} Ke7 {[%emt 0:00:35]} 42. Ra5 {[%emt 0:00:18]} Kxe6 {[%emt 0:00:37]} 43. Ra6+ {[%emt 0:00:01]} Kf7 {[%emt 0:00:18]} 44. Ra7+ {[%emt 0:00:07]} Kg8 {[%emt 0:00:02]} 45. Kf4 {[%emt 0:01:12]} Ra3 {[%emt 0:00:32]} 46. Re7 {[%emt 0:00:09]} h6 {[%emt 0:00:04]} 47. Kg3 {[%emt 0:00:16]} Re3 {[%emt 0:00:02]} 48. Rd7 {[%emt 0:00:05]} Red3 {[%emt 0:00:01]} 49. Re7 {[%emt 0:00:03]} Re3 {[%emt 0:00:01]} 50. Rd7 {[%emt 0:00:01]} Red3 {[%emt 0:00:01]} 51. Re7 {[%emt 0:00:01]} Re3 {[%emt 0:00:01] Weighted Error Value: White=0.07 (flawless) /Black=0.05 (flawless) Mistake: 	White=1 	--- Inaccurate: 	White=2 	Black=5 OK: 	White=20 	Black=18 Best: 	White=2 	Black=1 Strong: 	--- 	Black=3} 1/2-1/2

[Event "GCT Superbet Rapid Poland 2025"]
[Site "Warsaw"]
[Date "2025.04.27"]
[Round "5.1"]
[White "Vachier-Lagrave, Maxime"]
[Black "Gavrilescu, David"]
[Result "1-0"]
[ECO "B91"]
[WhiteElo "2722"]
[BlackElo "2554"]
[Annotator "TA"]
[PlyCount "75"]
[EventDate "2025.??.??"]
[EventType "rapid"]
[TimeControl "1500+10"]

{[%evp 11,75,22,33,8,10,0,6,5,3,-5,41,33,43,47,32,31,27,22,33,41,51,54,64,62,66,56,57,21,2,-6,-31,-12,-25,-24,-20,-10,0,0,69,71,75,68,100,91,188,190,206,156,237,147,247,113,481,457,1760,1709,29991,29989,29992,29993,29993,29990,29992,29992,29992,29990]} 1. e4 {[%emt 0:00:04]} c5 {[%emt 0:00:05]} 2. Nf3 {[%emt 0:00:02]} d6 {[%emt 0:00:05]} 3. d4 {[%emt 0:00:01]} cxd4 {[%emt 0:00:03]} 4. Nxd4 {[%emt 0:00:02]} Nf6 {[%emt 0:00:05]} 5. Nc3 {[%emt 0:00:01]} a6 {[%emt 0:00:04]} 6. g3 {[%emt 0:00:02]} e5 {[%emt 0:00:14]} 7. Nb3 $1 {[%emt 0:00:04][%mdl 4] is currently scoring better than 7.Nde2. B91: Sicilian Najdorf: 6 g3.} Be7 {[%emt 0:01:41]} 8. Bg5 {[%emt 0:00:02]} Be6 {[%emt 0:02:51]} 9. Bxf6 {[%emt 0:00:03] The position is equal.} Bxf6 {[%emt 0:00:02]} 10. Qd3 {[%emt 0:00:02]} Be7 {[%emt 0:03:27]} (10... O-O $11) 11. O-O-O $14 {[%emt 0:01:19]} Nd7 {[%emt 0:00:03]} 12. f4 {[%emt 0:02:00]} Nf6 {[%emt 0:01:10]} 13. f5 {[%emt 0:00:02]} Bd7 {[%emt 0:00:39]} 14. Be2 {[%emt 0:00:01]} Bc6 {[%emt 0:01:47]} 15. g4 {[%emt 0:00:26]} h6 {[%emt 0:00:19]} 16. h4 {[%emt 0:01:02]} Nd7 {[%emt 0:01:02]} 17. Qg3 {[%emt 0:00:02]} Qc7 $146 {[%emt 0:00:41]} (17... b5 18. Kb1 Rc8 19. a3 Qb6 20. g5 hxg5 21. hxg5 Rxh1 22. Rxh1 Bf8 23. Qd3 Nc5 24. Nxc5 dxc5 {1-0 Daulyte Cornette,D (2405)-Brunello,M (2378) EU-Cup (Women) 24th 2019 (2.1)}) ({RR} 17... b5 18. Kb1 Rc8 19. a3 Qb6 20. g5 hxg5 21. hxg5 Rxh1 22. Rxh1 Bf8 23. Qd3 Nc5 24. Nxc5 dxc5 25. Nd5 Qb7 26. f6 g6 27. Rh8 Bxd5 28. Qh3 Be6 29. Rxf8+ Kd7 30. Rxf7+ {1-0 (30) Daulyte Cornette,D (2405)-Brunello,M (2378) Ulcinj 2019}) 18. Bc4 {[%emt 0:00:49]} Rc8 {[%emt 0:01:18][%cal Oc6e4]} 19. Rh2 {[%emt 0:03:51]} b5 {[%emt 0:01:11]} 20. Bd5 {[%emt 0:00:02]} b4 {[%emt 0:00:06]} 21. Bxc6 {[%emt 0:00:02]} bxc3 {[%emt 0:00:02]} 22. Ba4 {[%emt 0:00:44]} Kf8 {[%emt 0:03:54]} 23. Bxd7 $1 {[%emt 0:00:15]} (23. Qxc3 $2 Qxc3 24. bxc3 Nb6 $19) 23... Qxd7 {[%emt 0:00:02]} 24. bxc3 {[%emt 0:03:45]} a5 {[%emt 0:02:24]} 25. Rd5 {[%emt 0:00:39]} (25. Nxa5 Qa4 26. Nb3 Qxe4 $15 (26... Qxa2 27. Rd5 $11)) (25. Qxe5 a4 26. Na5 Qc7 $19 (26... dxe5 27. Rxd7 g6 28. Rhd2 $16)) 25... a4 {[%emt 0:01:17]} 26. Nd2 {[%emt 0:00:02]} Qa7 {[%emt 0:00:17]} 27. g5 {[%emt 0:01:30][%cal Bg4g5,Bg5g6][%mdl 32]} Rb8 {[%emt 0:01:26] [#] Black is weak on the light squares} (27... Qd7 $16) 28. g6 $1 $18 {[%emt 0:00:50]} Qb7 {[%emt 0:00:36]} 29. Kd1 {[%emt 0:01:07] Active counter play!} Qb2 {[%emt 0:00:09]} (29... fxg6 $16 30. fxg6 (30. Qxg6 Qb2 $16) 30... Bf6) 30. Qd3 {[%emt 0:00:27] Hoping for Qc4.} (30. Rg2 Qa1+ 31. Ke2 Qxa2 32. gxf7 Bf6 33. Rxd6 Qxf7) 30... Qxa2 {[%emt 0:01:20]} (30... Qb6 $16 {keeps fighting.} 31. Rg2 fxg6) 31. Rxd6 {[%emt 0:00:41]} (31. Ke2 $18 {is more deadly.}) 31... a3 $2 {[%emt 0:01:09][%mdl 8192] [#] This move loses the game for Black.} (31... fxg6 $16 {is more resistant.} 32. Rg2 (32. Rxg6 $2 {too greedy.} Rd8 $17) 32... g5 (32... Bxh4 $2 33. Nf3 $18) (32... gxf5 33. exf5 a3 34. Rgg6 $11)) 32. Ke2 $1 {[%emt 0:00:53]} Kg8 {[%emt 0:00:45]} (32... Ke8 $142 33. Ra6 Kf8) (32... Qb2 33. Qc4) 33. Rd7 {[%emt 0:00:20] Threatening mate with c4.} Bf6 {[%emt 0:00:11] [#]} 34. Nb3 $1 {[%emt 0:00:49] White mates.} h5 {[%emt 0:00:10]} (34... fxg6 35. fxg6) 35. gxf7+ {[%emt 0:00:39]} Kh7 {[%emt 0:00:03] [#]} 36. Qf3 $1 {[%emt 0:00:01][%cal Rf3h5]} Kh6 {[%emt 0:00:17] [#]} (36... Qxc2+ 37. Nd2) 37. Rg2 $1 {[%emt 0:00:23]} Qxc2+ {[%emt 0:00:11]} 38. Rd2 {[%emt 0:00:03] Weighted Error Value: White=0.13 (very precise) /Black=0.70 Loses game: 	--- 	Black=1 Mistake: 	White=1 	Black=6 Inaccurate: 	White=2 	Black=2 OK: 	White=11 	Black=8 Best: 	White=2 	Black=2 Strong: 	White=2 	---} 1-0

[Event "GCT Superbet Rapid Poland 2025"]
[Site "Warsaw"]
[Date "2025.04.27"]
[Round "5.2"]
[White "Deac, Bogdan-Daniel"]
[Black "Topalov, Veselin"]
[Result "1-0"]
[ECO "C92"]
[WhiteElo "2668"]
[BlackElo "2717"]
[Annotator "TA"]
[PlyCount "127"]
[EventDate "2025.??.??"]
[EventType "rapid"]
[TimeControl "1500+10"]

{[%evp 19,127,31,34,6,45,13,20,7,38,14,14,-9,9,0,12,13,33,-3,24,-15,90,25,142,0,146,73,69,70,70,70,81,68,73,0,0,0,0,0,0,0,51,54,51,48,81,75,103,103,131,129,124,119,123,120,117,121,147,149,143,141,151,151,143,107,110,84,95,105,136,129,127,60,58,58,69,0,0,0,5,4,2,10,10,7,6,8,25,22,29,29,25,-13,236,236,236,231,224,216,202,200,343,246,865,857,827,776,1150,1015,1606,1516]} 1. e4 {[%emt 0:00:03]} e5 {[%emt 0:00:01]} 2. Nf3 {[%emt 0:00:02]} Nc6 {[%emt 0:00:02]} 3. Bb5 {[%emt 0:00:01]} a6 {[%emt 0:00:01]} 4. Ba4 {[%emt 0:00:02]} Nf6 {[%emt 0:00:02]} 5. O-O {[%emt 0:00:03]} Be7 {[%emt 0:00:04]} 6. Re1 {[%emt 0:00:35]} b5 {[%emt 0:00:06]} 7. Bb3 {[%emt 0:00:02]} d6 {[%emt 0:00:04]} 8. c3 {[%emt 0:00:05]} O-O {[%emt 0:00:03]} 9. h3 {[%emt 0:00:27]} Bb7 {[%emt 0:00:02]} 10. d4 {[%emt 0:00:26]} Re8 {[%emt 0:00:02]} 11. a3 {[%emt 0:00:30] C92: Closed Ruy Lopez: 9...Be6, Karpov and Flohr-Zaitsev Variations.} h6 {[%emt 0:00:07]} 12. Ba2 {[%emt 0:01:47]} Bf8 {[%emt 0:00:27]} 13. Nbd2 $146 {[%emt 0:01:27] The position is equal.} ({RR} 13. d5 Nb8 14. c4 c6 15. Nc3 Nbd7 16. dxc6 Bxc6 17. cxb5 axb5 18. b4 Nb6 19. Bb2 Qd7 20. Qd3 Nh5 21. Rad1 Nf4 22. Qe3 Nc4 23. Bxc4 bxc4 24. Nxe5 Nxh3+ 25. gxh3 Rxe5 26. Nd5 Rg5+ 27. Kh2 Bxd5 {Mammadzada,G (2449)-Ivanchuk,V (2656) Salamanca ESP 2023 0-1 (45)}) ({RR} 13. d5 Ne7 14. b3 c5 15. c4 bxc4 16. bxc4 Ng6 17. Bb3 Bc8 18. Ba4 Bd7 19. Nc3 Rb8 20. Bd2 Nh5 21. g3 Re7 22. Kg2 Qc8 23. Bxd7 Rxd7 24. Nh2 Nf6 25. Qf3 Rb3 26. Nf1 Rdb7 27. Ne3 Ne7 {Firouzja,A (2759)-Le,Q (2709) chess24.com INT 2021 0-1 (49)}) ({RR} 13. d5 Ne7 14. b3 c6 15. c4 Rc8 16. Bd2 Qd7 17. Nc3 Ng6 18. Rc1 Be7 19. Bb1 Bd8 20. Be3 bxc4 21. bxc4 Ba5 22. Qb3 Rc7 23. Red1 cxd5 24. cxd5 Rec8 25. Ne2 Rxc1 26. Rxc1 Rxc1+ 27. Bxc1 Qc7 {Lodici,L (2570)-Sonis,F (2576) Darfo Boario Terme ITA 2025 ½-½}) ({RR} 13. d5 Ne7 14. b3 c6 15. c4 Rc8 16. Bd2 Nd7 17. Nc3 Nc5 18. Be3 cxd5 19. cxd5 Ng6 20. Rc1 Qf6 21. b4 Nd7 22. a4 bxa4 23. Qxa4 Qe7 24. Ne2 Nf6 25. Ng3 Rxc1 26. Rxc1 Rc8 27. Rxc8 Bxc8 {Tsolakidou,S (2427)-Khamdamova,A (2327) Samarkand UZB 2023 1-0 (66)}) 13... Qd7 {[%emt 0:00:46]} 14. Qc2 {[%emt 0:02:20]} a5 {[%emt 0:03:41]} 15. Qd3 $146 {[%emt 0:10:06]} (15. b3 Nh5 16. Nf1 Ne7 17. d5 c6 18. c4 cxd5 19. cxd5 f5 20. exf5 b4 {0-1 Chigaev,M (2560)-Matlakov,M (2709) Moscow Aeroflot op-A 17th 2018 (1)}) 15... Nb8 {[%emt 0:03:33]} 16. b3 {[%emt 0:05:25][%cal Bb2b3,Bb3b4][%mdl 32]} Qc6 {[%emt 0:07:06]} 17. Bb2 {[%emt 0:03:19]} Nbd7 {[%emt 0:00:12][%cal Ob5b4]} 18. b4 {[%emt 0:00:17]} Nb6 {[%emt 0:05:20]} 19. Rac1 {[%emt 0:01:06]} (19. dxe5 {looks sharper.} dxe5 20. c4 axb4 21. Nxe5 Rxe5 22. Bxe5 Qe6 23. Bxc7 Rxa3 24. Bb3) 19... Ba6 {[%emt 0:01:12]} (19... Qd7 $1 $11 {keeps the balance.}) 20. Qc2 {[%emt 0:00:13]} (20. bxa5 $6 Nc4 21. Qb1 Nxa5 $11) (20. Nb3 $16) 20... Nfd7 {[%emt 0:04:17]} (20... Nh5 $11) 21. Bb3 {[%emt 0:00:11]} (21. bxa5 $6 Nc4 $11) (21. Nb3 $1 $16 {[%cal Rb3a5]} d5 22. Nxa5) 21... Nc4 {[%emt 0:00:22]} (21... Qb7 $11) 22. Nxc4 {[%emt 0:00:05]} (22. Bxc4 $142 bxc4 23. a4) 22... bxc4 $16 {[%emt 0:00:01]} 23. Ba4 {[%emt 0:00:06]} Bb5 {[%emt 0:00:03]} 24. d5 $1 {[%emt 0:00:18][%csl Of8] Black has a bad bishop} Qb7 {[%emt 0:00:04] [#]} 25. Bxb5 $1 {[%emt 0:00:01]} Qxb5 {[%emt 0:00:01]} 26. Rcd1 {[%emt 0:00:19]} (26. a4 $16 Qb7 27. b5) 26... Nb6 $11 {[%emt 0:00:06]} 27. Bc1 {[%emt 0:00:10]} Be7 {[%emt 0:01:02][%cal Bf8e7,Be7d8,Bd8b6][%mdl 32]} 28. Qe2 {[%emt 0:00:11]} Na4 {[%emt 0:00:28]} 29. Qc2 {[%emt 0:00:05]} c6 {[%emt 0:00:15]} (29... Nb6 $11) 30. dxc6 $14 {[%emt 0:00:08]} Qxc6 {[%emt 0:00:02]} 31. Be3 {[%emt 0:00:06]} Bd8 {[%emt 0:00:21]} 32. Nd2 {[%emt 0:00:19][%cal Bf3d2,Bd2f1,Bf1e3,Be3f5][%mdl 32]} Bb6 {[%emt 0:00:08]} 33. Nf1 {[%emt 0:00:02]} Rad8 {[%emt 0:00:07]} 34. Rd2 {[%emt 0:00:15]} axb4 {[%emt 0:00:02]} 35. axb4 {[%emt 0:00:05]} Bxe3 {[%emt 0:00:23]} 36. Nxe3 {[%emt 0:00:01]} (36. Rxe3 Nb6 $14) 36... Nb6 {[%emt 0:00:01]} 37. Red1 {[%emt 0:00:10]} Rd7 {[%emt 0:00:05][%csl Od6] White attacks a weakness} 38. Nf5 {[%emt 0:00:15]} Nc8 {[%emt 0:00:03]} ({Not} 38... d5 $2 39. exd5 Qg6 40. d6 $18) 39. Rd5 {[%emt 0:00:18]} Kh7 {[%emt 0:00:02]} 40. Ra5 {[%emt 0:00:08] White is much more active.} Nb6 {[%emt 0:00:07]} 41. Qe2 {[%emt 0:00:19]} g6 {[%emt 0:00:05]} 42. Ng3 {[%emt 0:00:08]} Ra8 {[%emt 0:00:44]} 43. Rda1 {[%emt 0:00:05]} Rad8 {[%emt 0:00:04]} 44. Nf1 {[%emt 0:00:16]} d5 {[%emt 0:00:09]} 45. exd5 {[%emt 0:00:07]} (45. Rc5 $16 Qf6 46. exd5) 45... Nxd5 {[%emt 0:00:23]} 46. Qxe5 {[%emt 0:00:03]} Re7 $1 {[%emt 0:00:10]} 47. Qg3 {[%emt 0:00:20]} (47. Ra6 $1 $14 Qxa6 (47... Rxe5 48. Rxc6 Nxc3 49. Rxc4 $16) 48. Qxe7 Nxe7 (48... Qxa1 49. Qxd8 Nxc3 50. Qe7 $11) 49. Rxa6) 47... Qf6 $11 {[%emt 0:00:02]} 48. R5a3 {[%emt 0:00:10]} Nf4 {[%emt 0:00:02] Strongly threatening ...Ne2+.} 49. Qf3 {[%emt 0:00:03] With the idea Ra6.} Ne2+ $1 {[%emt 0:00:31]} 50. Kh1 {[%emt 0:00:08]} Qxf3 {[%emt 0:00:01]} 51. gxf3 {[%emt 0:00:01]} Rd3 {[%emt 0:00:01][%csl Bc3,Bf3]} 52. Ne3 {[%emt 0:00:10]} Nxc3 {[%emt 0:00:27]} 53. Nxc4 {[%emt 0:00:03]} Rxf3 {[%emt 0:00:02]} 54. Kg2 {[%emt 0:00:03]} Rd3 {[%emt 0:00:01]} 55. b5 {[%emt 0:00:32][%cal Bb4b5,Bb5b6][%mdl 32] [#]} Ne2 $2 {[%emt 0:00:07] This move loses the game for Black.} 56. Rxd3 $18 {[%emt 0:00:06]} Nf4+ {[%emt 0:00:01][%cal Be2f4,Bf4d3,Bd3c5,Bc5b7][%mdl 32]} 57. Kg3 {[%emt 0:00:08]} Nxd3 {[%emt 0:00:01][%mdl 4096] Endgame KRN-KRN} 58. b6 {[%emt 0:00:03] Ra7 would now be deadly.} Nc5 {[%emt 0:00:19]} 59. Ra7 {[%emt 0:00:08]} Rb7 {[%emt 0:00:04]} (59... Re4 $142) 60. Kf4 {[%emt 0:00:23]} h5 $2 {[%emt 0:00:03]} (60... Kg7 61. Rxb7 Nxb7) 61. Rxb7 {[%emt 0:00:20] White is clearly winning.} Nxb7 {[%emt 0:00:01]} 62. Ke5 {[%emt 0:00:02]} g5 {[%emt 0:00:05]} 63. Kf6 {[%emt 0:00:17][%csl Bf7,Bg5]} Kh6 {[%emt 0:00:05]} 64. Ne5 {[%emt 0:00:03] Weighted Error Value: White=0.17 (very precise) /Black=0.60 Loses game: 	--- 	Black=1 Mistake: 	White=6 	Black=6 Inaccurate: 	White=4 	Black=5 OK: 	White=22 	Black=17 Best: 	White=4 	Black=3 Strong: 	White=2 	Black=2} 1-0